[Event "Turkish Youth Championships 2023"]
[Site "Samsun"]
[Date "2023.05.23"]
[Round "7.20"]
[White "Yontem, Emir Fehim"]
[Black "Cicek, Bilal Emre"]
[Result "0-1"]
[WhiteElo "1391"]
[BlackElo "1600"]
[PlyCount "168"]
[EventDate "2023.05.19"]
[EventType "swiss"]
[EventCountry "TUR"]
[TimeControl "5400+30"]
[WhiteClock "0:31:00"]

1. d4 {[%emt 0:01:00]} d5 {[%emt 0:01:00]} 2. Nf3 {[%emt 0:00:30]} e6 {[%emt 0:00:30]} 3. e3 {[%emt 0:00:30]} a6 {[%emt 0:00:30]} 4. Bd3 {[%emt 0:00:30]} c5 {[%emt 0:00:30]} 5. b3 {[%emt 0:00:30]} Nf6 {[%emt 0:00:30]} 6. Nbd2 {[%emt 0:00:30]} b6 {[%emt 0:00:00]} 7. Bb2 {[%emt 0:00:30]} Nbd7 {[%emt 0:03:00]} 8. O-O {[%emt 0:00:30]} Bb7 {[%emt 0:00:30]} 9. Ne5 {[%emt 0:00:30]} Nxe5 {[%emt 0:00:30]} 10. dxe5 {[%emt 0:00:00]} Nd7 {[%emt 0:02:30]} 11. Qe2 {[%emt 0:04:00]} Qc7 {[%emt 0:02:30]} 12. f4 {[%emt 0:00:30]} Be7 {[%emt 0:14:30]} 13. e4 {[%emt 0:04:30]} d4 {[%emt 0:04:30]} 14. c3 {[%emt 0:00:00]} dxc3 {[%emt 0:00:30]} 15. Bxc3 {[%emt 0:00:00]} O-O {[%emt 0:02:30]} 16. Rac1 {[%emt 0:03:30]} b5 {[%emt 0:09:30]} 17. a4 {[%emt 0:02:30]} c4 {[%emt 0:01:30]} 18. bxc4 {[%emt 0:01:30]} Bc5+ {[%emt 0:03:30]} 19. Kh1 {[%emt 0:00:30]} b4 {[%emt 0:03:30]} 20. Bb2 {[%emt 0:00:30]} Rfd8 {[%emt 0:01:30]} 21. Nb3 {[%emt 0:02:30]} a5 {[%emt 0:01:30]} 22. Nd4 {[%emt 0:18:30]} Bxd4 {[%emt 0:17:30]} 23. Bxd4 {[%emt 0:00:30]} Nc5 {[%emt 0:00:30]} 24. Bxc5 {[%emt 0:00:30]} Qxc5 {[%emt 0:00:30]} 25. Rfd1 {[%emt 0:00:30]} Rd4 {[%emt 0:00:30]} 26. Rd2 {[%emt 0:00:30]} Bc6 {[%emt 0:00:30]} 27. Bc2 {[%emt 0:00:30]} Rxc4 {[%emt 0:03:30]} 28. Rcd1 {[%emt 0:00:00]} h6 {[%emt 0:01:30]} 29. f5 {[%emt 0:01:00]} b3 {[%emt 0:05:30]} 30. Bxb3 {[%emt 0:06:30]} Rxe4 {[%emt 0:00:30]} 31. Qf1 {[%emt 0:00:00]} Rxe5 {[%emt 0:02:38]} 32. fxe6 {[%emt 0:01:00]} fxe6 {[%emt 0:00:43]} 33. h3 {[%emt 0:12:30]} Re3 {[%emt 0:02:15]} 34. Rd3 {[%emt 0:01:30]} Rb8 {[%emt 0:02:03]} 35. Rc1 {[%emt 0:02:30]} Qe5 {[%emt 0:02:15]} 36. Bxe6+ {[%emt 0:01:30]} Qxe6 {[%emt 0:00:30]} 37. Rxe3 {[%emt 0:00:30]} Bxg2+ {[%emt 0:00:00]} 38. Kxg2 {[%emt 0:02:30]} Qxe3 {[%emt 0:00:05]} 39. Qc4+ {[%emt 0:00:30]} Kh8 {[%emt 0:00:31]} 40. Rc2 {[%emt 0:00:30]} Qg5+ {[%emt 0:00:14]} 41. Kh2 {[%emt 0:00:30]} Rb1 {[%emt 0:01:02]} 42. Qd4 {[%emt 0:02:30]} Rb8 {[%emt 0:03:19]} 43. h4 {[%emt 0:03:30]} Qg6 {[%emt 0:01:28]} 44. Rg2 {[%emt 0:01:30]} Qf7 {[%emt 0:00:28]} 45. Qe5 {[%emt 0:00:30]} Rb4 {[%emt 0:01:13]} 46. Qg3 {[%emt 0:02:30]} Qf4 {[%emt 0:00:40]} 47. Kh3 {[%emt 0:01:30]} Qxg3+ {[%emt 0:00:30]} 48. Rxg3 {[%emt 0:00:30]} Rxa4 {[%emt 0:00:30]} 49. Rg6 {[%emt 0:00:30]} Rb4 {[%emt 0:00:30]} 50. Ra6 {[%emt 0:00:30]} Rb5 {[%emt 0:00:30]} 51. Kg4 {[%emt 0:00:00]} Kg8 {[%emt 0:00:44]} 52. Ra7 {[%emt 0:00:00]} Kf8 {[%emt 0:01:02]} 53. Ra8+ {[%emt 0:01:30]} Kf7 {[%emt 0:00:30]} 54. Ra7+ {[%emt 0:00:00]} Kf6 {[%emt 0:00:12]} 55. Ra6+ {[%emt 0:00:00]} Ke7 {[%emt 0:00:00]} 56. Ra7+ {[%emt 0:00:30]} Kf8 {[%emt 0:00:37]} 57. Ra8+ {[%emt 0:00:30]} Kf7 {[%emt 0:00:30]} 58. Ra7+ {[%emt 0:00:30]} Kg6 {[%emt 0:00:30]} 59. Ra6+ {[%emt 0:00:00]} Kh7 {[%emt 0:00:00]} 60. Ra7 {[%emt 0:00:00]} h5+ {[%emt 0:00:00]} 61. Kf4 {[%emt 0:00:00]} Kh6 {[%emt 0:00:00]} 62. Ra6+ {[%emt 0:00:00]} g6 {[%emt 0:00:00]} 63. Kg3 {[%emt 0:00:30]} Rc5 {[%emt 0:00:00]} 64. Kf4 {[%emt 0:00:30]} Rc4+ {[%emt 0:00:00]} 65. Kg3 {[%emt 0:00:30]} a4 {[%emt 0:00:11]} 66. Ra5 {[%emt 0:00:00]} Rg4+ {[%emt 0:00:06]} 67. Kh3 {[%emt 0:00:00]} Kg7 {[%emt 0:00:00]} 68. Ra6 {[%emt 0:00:30]} Kf7 {[%emt 0:00:00]} 69. Rb6 {[%emt 0:00:00]} Ke7 {[%emt 0:00:00]} 70. Ra6 {[%emt 0:01:00]} Kd7 {[%emt 0:00:18]} 71. Rb6 {[%emt 0:00:00]} Kc7 {[%emt 0:00:07]} 72. Ra6 {[%emt 0:00:00]} Kb7 {[%emt 0:00:30]} 73. Rf6 {[%emt 0:00:00]} a3 {[%emt 0:00:00]} 74. Rf2 {[%emt 0:00:00]} Rb4 {[%emt 0:00:00]} 75. Rf7+ {[%emt 0:01:30]} Kc6 {[%emt 0:00:49]} 76. Rf3 {[%emt 0:00:30]} Ra4 {[%emt 0:00:14]} 77. Rf6+ {[%emt 0:00:30]} Kd7 {[%emt 0:00:18]} 78. Rxg6 {[%emt 0:01:30]} a2 {[%emt 0:00:30]} 79. Rg7+ {[%emt 0:00:30]} Ke6 {[%emt 0:00:00]} 80. Rg6+ {[%emt 0:00:00]} Kf7 {[%emt 0:00:00]} 81. Rg2 {[%emt 0:00:00]} a1=Q {[%emt 0:00:13]} 82. Rg1 {[%emt 0:00:00]} Ra3+ {[%emt 0:00:11]} 83. Kh2 {[%emt 0:00:00]} Qe5+ {[%emt 0:00:00]} 84. Kh1 {[%emt 0:00:30]} Qe4+ {[%emt 0:00:00]} 0-1

[Event "Turkish Youth Championships 2023"]
[Site "Samsun"]
[Date "2023.05.24"]
[Round "8.1"]
[White "Isik, Alparslan"]
[Black "Isilak, Enes"]
[Result "1-0"]
[WhiteElo "2451"]
[BlackElo "2181"]
[PlyCount "52"]
[EventDate "2023.05.19"]
[EventType "swiss"]
[EventCountry "TUR"]
[TimeControl "5400+30"]
[WhiteClock "0:51:00"]

1. d4 {[%emt 0:01:00]} d5 {[%emt 0:01:00]} 2. c4 {[%emt 0:00:30]} dxc4 {[%emt 0:00:30]} 3. Nf3 {[%emt 0:00:30]} Nf6 {[%emt 0:00:30]} 4. e3 {[%emt 0:00:30]} e6 {[%emt 0:00:30]} 5. Bxc4 {[%emt 0:00:00]} a6 {[%emt 0:00:00]} 6. O-O {[%emt 0:00:00]} b5 {[%emt 0:00:00]} 7. Bd3 {[%emt 0:00:00]} Bb7 {[%emt 0:00:00]} 8. a4 {[%emt 0:00:00]} b4 {[%emt 0:00:00]} 9. Qe2 {[%emt 0:00:00]} c5 {[%emt 0:00:00]} 10. Nbd2 {[%emt 0:00:00]} cxd4 {[%emt 0:02:00]} 11. exd4 {[%emt 0:03:30]} Be7 {[%emt 0:02:30]} 12. Nc4 {[%emt 0:01:30]} O-O {[%emt 0:16:30]} 13. Bf4 {[%emt 0:01:30]} Nbd7 {[%emt 0:07:30]} 14. a5 {[%emt 0:04:30]} Nd5 {[%emt 0:03:30]} 15. Bg3 {[%emt 0:00:30]} N7f6 {[%emt 0:00:00]} 16. Nfe5 {[%emt 0:00:30]} g6 {[%emt 0:00:00]} 17. Rfd1 {[%emt 0:16:30]} Nh5 {[%emt 0:08:30]} 18. Be4 {[%emt 0:02:30]} Ndf4 {[%emt 0:09:30]} 19. Bxf4 {[%emt 0:02:30]} Nxf4 {[%emt 0:00:30]} 20. Qf3 {[%emt 0:00:00]} Bxe4 {[%emt 0:05:30]} 21. Qxe4 {[%emt 0:00:00]} Nd5 {[%emt 0:00:30]} 22. Nb6 {[%emt 0:05:30]} Nxb6 {[%emt 0:00:00]} 23. axb6 {[%emt 0:00:00]} Qd6 {[%emt 0:01:00]} 24. Nc6 {[%emt 0:08:00]} Bf6 {[%emt 0:06:30]} 25. b7 {[%emt 0:01:30]} Rab8 {[%emt 0:00:30]} 26. Nxb8 {[%emt 0:00:30]} Rxb8 {[%emt 0:00:00]} 1-0

[Event "Turkish Youth Championships 2023"]
[Site "Samsun"]
[Date "2023.05.24"]
[Round "8.2"]
[White "Angun, Batu"]
[Black "Engin, Onur Cinar"]
[Result "1-0"]
[WhiteElo "2205"]
[BlackElo "1922"]
[PlyCount "93"]
[EventDate "2023.05.19"]
[EventType "swiss"]
[EventCountry "TUR"]
[TimeControl "5400+30"]
[BlackClock "0:02:19"]

1. d4 {[%emt 0:01:00]} d5 {[%emt 0:01:00]} 2. c4 {[%emt 0:00:30]} c6 {[%emt 0:00:30]} 3. Nf3 {[%emt 0:00:30]} Nf6 {[%emt 0:00:00]} 4. Nc3 {[%emt 0:00:00]} e6 {[%emt 0:00:00]} 5. e3 {[%emt 0:01:00]} Nbd7 {[%emt 0:01:30]} 6. Qc2 {[%emt 0:00:30]} Bd6 {[%emt 0:00:30]} 7. Bd3 {[%emt 0:03:30]} O-O {[%emt 0:01:30]} 8. O-O {[%emt 0:02:30]} dxc4 {[%emt 0:01:30]} 9. Bxc4 {[%emt 0:00:30]} a6 {[%emt 0:01:30]} 10. a4 {[%emt 0:14:30]} c5 {[%emt 0:02:30]} 11. dxc5 {[%emt 0:02:30]} Bxc5 {[%emt 0:03:30]} 12. Rd1 {[%emt 0:10:30]} Qc7 {[%emt 0:14:30]} 13. b3 {[%emt 0:00:30]} b6 {[%emt 0:07:30]} 14. Bb2 {[%emt 0:00:00]} Bb7 {[%emt 0:01:30]} 15. Qe2 {[%emt 0:02:00]} Ng4 {[%emt 0:18:30]} 16. h3 {[%emt 0:03:30]} Nge5 {[%emt 0:04:30]} 17. Rac1 {[%emt 0:17:30]} Nxf3+ {[%emt 0:11:30]} 18. gxf3 {[%emt 0:00:00]} Ne5 {[%emt 0:01:30]} 19. Ne4 {[%emt 0:00:00]} Rad8 {[%emt 0:09:15]} 20. Rxd8 {[%emt 0:14:30]} Rxd8 {[%emt 0:00:14]} 21. b4 {[%emt 0:00:00]} Bxb4 {[%emt 0:11:39]} 22. Bd5 {[%emt 0:04:00]} Qd7 {[%emt 0:05:16]} 23. Bxb7 {[%emt 0:01:30]} Nd3 {[%emt 0:00:05]} 24. Rc8 {[%emt 0:00:30]} Nxb2 {[%emt 0:01:48]} 25. Rxd8+ {[%emt 0:01:30]} Qxd8 {[%emt 0:00:05]} 26. Qxb2 {[%emt 0:00:30]} Qd1+ {[%emt 0:00:30]} 27. Kg2 {[%emt 0:00:30]} Qxa4 {[%emt 0:00:00]} 28. Bxa6 {[%emt 0:00:00]} Qxa6 {[%emt 0:00:19]} 29. Qxb4 {[%emt 0:00:00]} Qb7 {[%emt 0:01:12]} 30. Qb5 {[%emt 0:00:30]} g6 {[%emt 0:00:51]} 31. Nd6 {[%emt 0:00:30]} Qc7 {[%emt 0:00:23]} 32. Nc4 {[%emt 0:00:30]} Qc5 {[%emt 0:00:44]} 33. Qxc5 {[%emt 0:00:30]} bxc5 {[%emt 0:00:30]} 34. f4 {[%emt 0:00:00]} f5 {[%emt 0:00:00]} 35. Kf3 {[%emt 0:01:00]} Kg7 {[%emt 0:00:22]} 36. Ke2 {[%emt 0:00:30]} Kf6 {[%emt 0:01:03]} 37. Ne5 {[%emt 0:00:30]} g5 {[%emt 0:00:45]} 38. Nd7+ {[%emt 0:00:30]} Kg6 {[%emt 0:00:17]} 39. Nxc5 {[%emt 0:00:00]} gxf4 {[%emt 0:00:55]} 40. exf4 {[%emt 0:00:00]} Kf6 {[%emt 0:00:12]} 41. Ke3 {[%emt 0:00:30]} Ke7 {[%emt 0:00:29]} 42. Kd4 {[%emt 0:00:30]} Kd6 {[%emt 0:00:00]} 43. Nd3 {[%emt 0:00:30]} h6 {[%emt 0:00:13]} 44. f3 {[%emt 0:00:00]} h5 {[%emt 0:00:23]} 45. h4 {[%emt 0:00:00]} Ke7 {[%emt 0:00:30]} 46. Ke5 {[%emt 0:00:00]} Kf7 {[%emt 0:00:00]} 47. Nc5 {[%emt 0:00:00]} 1-0

[Event "Turkish Youth Championships 2023"]
[Site "Samsun"]
[Date "2023.05.24"]
[Round "8.3"]
[White "Tarlabasi, Emirhan"]
[Black "Kavri, Yusuf Eren"]
[Result "1-0"]
[WhiteElo "2300"]
[BlackElo "2029"]
[PlyCount "67"]
[EventDate "2023.05.19"]
[EventType "swiss"]
[EventCountry "TUR"]
[TimeControl "5400+30"]
[BlackClock "0:13:23"]

1. d4 {[%emt 0:01:00]} Nf6 {[%emt 0:01:00]} 2. c4 {[%emt 0:00:30]} e6 {[%emt 0:00:30]} 3. Nf3 {[%emt 0:00:30]} b6 {[%emt 0:00:00]} 4. g3 {[%emt 0:00:30]} Ba6 {[%emt 0:00:00]} 5. b3 {[%emt 0:03:30]} Bb4+ {[%emt 0:00:00]} 6. Bd2 {[%emt 0:00:30]} Be7 {[%emt 0:00:00]} 7. Bg2 {[%emt 0:00:30]} c6 {[%emt 0:00:30]} 8. O-O {[%emt 0:03:30]} d5 {[%emt 0:00:00]} 9. Nc3 {[%emt 0:11:30]} O-O {[%emt 0:02:00]} 10. Bf4 {[%emt 0:02:30]} Nbd7 {[%emt 0:04:30]} 11. Qd3 {[%emt 0:05:30]} Rc8 {[%emt 0:06:30]} 12. Rac1 {[%emt 0:00:30]} c5 {[%emt 0:07:30]} 13. Nb5 {[%emt 0:04:30]} Bxb5 {[%emt 0:06:30]} 14. cxb5 {[%emt 0:00:30]} h6 {[%emt 0:02:30]} 15. Rfd1 {[%emt 0:06:30]} g5 {[%emt 0:08:30]} 16. Be3 {[%emt 0:01:30]} Kg7 {[%emt 0:02:30]} 17. h4 {[%emt 0:07:30]} Ng4 {[%emt 0:06:30]} 18. hxg5 {[%emt 0:01:30]} hxg5 {[%emt 0:00:30]} 19. Bd2 {[%emt 0:01:30]} f5 {[%emt 0:07:30]} 20. Bc3 {[%emt 0:02:30]} Kg6 {[%emt 0:09:30]} 21. Bh3 {[%emt 0:05:30]} Ngf6 {[%emt 0:03:30]} 22. Nxg5 {[%emt 0:06:30]} Kxg5 {[%emt 0:04:30]} 23. Qe3+ {[%emt 0:00:00]} Kg6 {[%emt 0:00:30]} 24. Qxe6 {[%emt 0:00:00]} c4 {[%emt 0:02:30]} 25. Bb2 {[%emt 0:11:30]} cxb3 {[%emt 0:04:30]} 26. Rxc8 {[%emt 0:00:30]} Qxc8 {[%emt 0:00:30]} 27. Bxf5+ {[%emt 0:00:30]} Kg7 {[%emt 0:01:30]} 28. Qxe7+ {[%emt 0:00:30]} Rf7 {[%emt 0:00:00]} 29. Qe3 {[%emt 0:08:20]} bxa2 {[%emt 0:02:06]} 30. Rc1 {[%emt 0:00:18]} Qf8 {[%emt 0:01:20]} 31. Qg5+ {[%emt 0:02:37]} Kh8 {[%emt 0:00:10]} 32. Rc6 {[%emt 0:01:39]} Nh7 {[%emt 0:04:10]} 33. Bxh7 {[%emt 0:00:32]} Rxf2 {[%emt 0:01:44]} 34. Bf5 {[%emt 0:00:29]} 1-0

[Event "Turkish Youth Championships 2023"]
[Site "Samsun"]
[Date "2023.05.24"]
[Round "8.4"]
[White "Demirbas, Emre"]
[Black "Akbas, Umut Ata"]
[Result "0-1"]
[WhiteElo "2013"]
[BlackElo "2417"]
[PlyCount "94"]
[EventDate "2023.05.19"]
[EventType "swiss"]
[EventCountry "TUR"]
[TimeControl "5400+30"]
[WhiteClock "0:02:20"]

1. Nf3 {[%emt 0:03:00]} Nf6 {[%emt 0:01:00]} 2. c4 {[%emt 0:00:30]} c5 {[%emt 0:00:00]} 3. g3 {[%emt 0:00:30]} d5 {[%emt 0:00:00]} 4. cxd5 {[%emt 0:00:30]} Nxd5 {[%emt 0:00:00]} 5. Bg2 {[%emt 0:00:30]} Nc6 {[%emt 0:00:00]} 6. d4 {[%emt 0:00:30]} cxd4 {[%emt 0:00:30]} 7. Nxd4 {[%emt 0:00:30]} Ndb4 {[%emt 0:00:30]} 8. Nxc6 {[%emt 0:00:30]} Qxd1+ {[%emt 0:00:30]} 9. Kxd1 {[%emt 0:00:00]} Nxc6 {[%emt 0:00:00]} 10. Nc3 {[%emt 0:00:00]} e5 {[%emt 0:00:00]} 11. Nb5 {[%emt 0:02:30]} Rb8 {[%emt 0:07:30]} 12. Be3 {[%emt 0:01:30]} Bf5 {[%emt 0:02:30]} 13. Nxa7 {[%emt 0:29:30]} Rd8+ {[%emt 0:09:30]} 14. Kc1 {[%emt 0:03:30]} Nxa7 {[%emt 0:33:30]} 15. Bxa7 {[%emt 0:01:30]} Rc8+ {[%emt 0:06:30]} 16. Kd1 {[%emt 0:00:30]} Bb4 {[%emt 0:00:30]} 17. e4 {[%emt 0:03:30]} Bg4+ {[%emt 0:03:30]} 18. f3 {[%emt 0:00:30]} Be6 {[%emt 0:00:30]} 19. Be3 {[%emt 0:18:30]} O-O {[%emt 0:11:30]} 20. Rc1 {[%emt 0:00:00]} Bc4 {[%emt 0:01:30]} 21. Rc2 {[%emt 0:09:00]} Bxa2 {[%emt 0:05:25]} 22. Rxc8 {[%emt 0:08:40]} Rxc8 {[%emt 0:00:13]} 23. Bh3 {[%emt 0:00:09]} Bb3+ {[%emt 0:01:09]} 24. Ke2 {[%emt 0:00:30]} Rc2+ {[%emt 0:00:00]} 25. Kd3 {[%emt 0:00:00]} Rxb2 {[%emt 0:02:56]} 26. Rc1 {[%emt 0:00:04]} h5 {[%emt 0:00:00]} 27. Rc8+ {[%emt 0:07:08]} Kh7 {[%emt 0:00:00]} 28. Rb8 {[%emt 0:02:58]} Ba5 {[%emt 0:05:27]} 29. Ra8 {[%emt 0:02:40]} b6 {[%emt 0:02:05]} 30. Bg5 {[%emt 0:00:55]} Rxh2 {[%emt 0:02:45]} 31. Bf5+ {[%emt 0:01:33]} g6 {[%emt 0:00:06]} 32. Bc8 {[%emt 0:03:14]} Kg7 {[%emt 0:00:49]} 33. f4 {[%emt 0:00:11]} Rd2+ {[%emt 0:02:18]} 34. Ke3 {[%emt 0:00:30]} Rc2 {[%emt 0:00:00]} 35. Kf3 {[%emt 0:00:35]} Rc3+ {[%emt 0:02:53]} 36. Kf2 {[%emt 0:00:20]} f6 {[%emt 0:01:00]} 37. Bh4 {[%emt 0:00:46]} Rc7 {[%emt 0:00:15]} 38. fxe5 {[%emt 0:00:44]} g5 {[%emt 0:00:57]} 39. exf6+ {[%emt 0:00:04]} Kxf6 {[%emt 0:00:30]} 40. e5+ {[%emt 0:00:30]} Kg6 {[%emt 0:00:10]} 41. e6 {[%emt 0:00:39]} gxh4 {[%emt 0:00:37]} 42. Bd7 {[%emt 0:00:09]} hxg3+ {[%emt 0:00:55]} 43. Kxg3 {[%emt 0:00:01]} Kf6 {[%emt 0:00:08]} 44. Rf8+ {[%emt 0:00:51]} Ke7 {[%emt 0:00:30]} 45. Rf7+ {[%emt 0:00:30]} Kd6 {[%emt 0:00:00]} 46. Kh4 {[%emt 0:00:03]} Rc4+ {[%emt 0:00:40]} 47. Kxh5 {[%emt 0:00:48]} Rc5+ {[%emt 0:00:05]} 0-1

[Event "Turkish Youth Championships 2023"]
[Site "Samsun"]
[Date "2023.05.24"]
[Round "8.5"]
[White "Zerey, Demhat"]
[Black "Cilek, Bora"]
[Result "0-1"]
[WhiteElo "1710"]
[BlackElo "2285"]
[PlyCount "134"]
[EventDate "2023.05.19"]
[EventType "swiss"]
[EventCountry "TUR"]
[TimeControl "5400+30"]
[WhiteClock "0:00:24"]

1. Nf3 {[%emt 0:03:00]} Nf6 {[%emt 0:06:00]} 2. g3 {[%emt 0:00:30]} d5 {[%emt 0:00:30]} 3. Bg2 {[%emt 0:00:30]} Bf5 {[%emt 0:00:00]} 4. b3 {[%emt 0:03:30]} e6 {[%emt 0:01:00]} 5. Bb2 {[%emt 0:00:30]} Be7 {[%emt 0:00:30]} 6. O-O {[%emt 0:01:30]} O-O {[%emt 0:00:30]} 7. c4 {[%emt 0:00:30]} Nbd7 {[%emt 0:01:30]} 8. d4 {[%emt 0:02:30]} c6 {[%emt 0:01:30]} 9. Nc3 {[%emt 0:04:30]} Ne4 {[%emt 0:04:30]} 10. Nxe4 {[%emt 0:07:30]} Bxe4 {[%emt 0:00:00]} 11. Nd2 {[%emt 0:01:30]} Bxg2 {[%emt 0:00:00]} 12. Kxg2 {[%emt 0:00:30]} Nf6 {[%emt 0:02:30]} 13. Qc2 {[%emt 0:02:30]} a5 {[%emt 0:10:30]} 14. e4 {[%emt 0:10:30]} dxe4 {[%emt 0:02:30]} 15. Nxe4 {[%emt 0:00:30]} Nxe4 {[%emt 0:00:30]} 16. Qxe4 {[%emt 0:00:30]} a4 {[%emt 0:00:30]} 17. Rfd1 {[%emt 0:01:30]} Bf6 {[%emt 0:01:30]} 18. Rd3 {[%emt 0:06:30]} axb3 {[%emt 0:09:30]} 19. Rxb3 {[%emt 0:04:30]} Qd7 {[%emt 0:03:30]} 20. Bc3 {[%emt 0:05:30]} Ra4 {[%emt 0:08:30]} 21. Qd3 {[%emt 0:08:30]} Rfa8 {[%emt 0:02:30]} 22. Rab1 {[%emt 0:01:30]} R8a7 {[%emt 0:01:30]} 23. d5 {[%emt 0:05:30]} Bxc3 {[%emt 0:18:30]} 24. Rxc3 {[%emt 0:00:00]} g6 {[%emt 0:00:30]} 25. dxe6 {[%emt 0:01:00]} Qxe6 {[%emt 0:01:30]} 26. Qd8+ {[%emt 0:02:30]} Kg7 {[%emt 0:00:30]} 27. Qd4+ {[%emt 0:04:30]} Qf6 {[%emt 0:00:30]} 28. Qxf6+ {[%emt 0:00:30]} Kxf6 {[%emt 0:00:00]} 29. Rf3+ {[%emt 0:00:30]} Kg7 {[%emt 0:00:00]} 30. Rfb3 {[%emt 0:05:41]} Rxa2 {[%emt 0:00:30]} 31. Rxb7 {[%emt 0:00:11]} Rxb7 {[%emt 0:00:30]} 32. Rxb7 {[%emt 0:00:30]} Ra4 {[%emt 0:00:00]} 33. Kf3 {[%emt 0:01:23]} Rxc4 {[%emt 0:00:00]} 34. h4 {[%emt 0:00:04]} h5 {[%emt 0:00:30]} 35. Rc7 {[%emt 0:00:30]} Kf6 {[%emt 0:00:00]} 36. Ke3 {[%emt 0:00:25]} Rc2 {[%emt 0:00:00]} 37. Kf3 {[%emt 0:00:59]} Ke6 {[%emt 0:00:30]} 38. Ke3 {[%emt 0:00:09]} Rc5 {[%emt 0:01:30]} 39. Kd4 {[%emt 0:02:21]} Rc2 {[%emt 0:00:30]} 40. Ke3 {[%emt 0:00:00]} c5 {[%emt 0:03:30]} 41. Kf3 {[%emt 0:00:34]} f6 {[%emt 0:01:30]} 42. Kg2 {[%emt 0:03:29]} Rc3 {[%emt 0:00:30]} 43. Rc6+ {[%emt 0:01:10]} Ke5 {[%emt 0:00:30]} 44. Kh2 {[%emt 0:01:09]} Rc4 {[%emt 0:03:43]} 45. Kg2 {[%emt 0:02:48]} Rc2 {[%emt 0:00:04]} 46. Kf3 {[%emt 0:00:25]} Rc3+ {[%emt 0:00:30]} 47. Kg2 {[%emt 0:00:30]} Kf5 {[%emt 0:00:30]} 48. Rc8 {[%emt 0:00:00]} Rc1 {[%emt 0:03:11]} 49. Kf3 {[%emt 0:00:17]} Rc4 {[%emt 0:00:46]} 50. Kg2 {[%emt 0:00:59]} Rc3 {[%emt 0:01:38]} 51. Kh2 {[%emt 0:00:31]} g5 {[%emt 0:06:48]} 52. hxg5 {[%emt 0:00:29]} fxg5 {[%emt 0:00:06]} 53. Kg2 {[%emt 0:03:21]} h4 {[%emt 0:00:30]} 54. f3 {[%emt 0:02:42]} Ke5 {[%emt 0:04:29]} 55. Re8+ {[%emt 0:00:30]} Kd4 {[%emt 0:00:44]} 56. gxh4 {[%emt 0:01:32]} gxh4 {[%emt 0:00:01]} 57. Re4+ {[%emt 0:00:27]} Kd3 {[%emt 0:00:30]} 58. Rxh4 {[%emt 0:00:30]} c4 {[%emt 0:00:00]} 59. f4 {[%emt 0:00:00]} Rb3 {[%emt 0:01:06]} 60. Kf3 {[%emt 0:03:22]} c3 {[%emt 0:00:34]} 61. Rh8 {[%emt 0:00:19]} c2 {[%emt 0:00:00]} 62. Rd8+ {[%emt 0:00:06]} Kc3 {[%emt 0:00:00]} 63. Rc8+ {[%emt 0:00:51]} Kd4+ {[%emt 0:02:02]} 64. Kg4 {[%emt 0:00:55]} Rc3 {[%emt 0:00:04]} 65. Rd8+ {[%emt 0:00:17]} Ke4 {[%emt 0:01:10]} 66. Re8+ {[%emt 0:00:30]} Kd5 {[%emt 0:00:00]} 67. Rd8+ {[%emt 0:00:43]} Ke6 {[%emt 0:00:00]} 0-1

[Event "Turkish Youth Championships 2023"]
[Site "Samsun"]
[Date "2023.05.24"]
[Round "8.7"]
[White "Temizer, Umut"]
[Black "Topaloglu, Mehmet Utkan"]
[Result "1-0"]
[WhiteElo "1973"]
[BlackElo "1511"]
[PlyCount "83"]
[EventDate "2023.05.19"]
[EventType "swiss"]
[EventCountry "TUR"]
[TimeControl "5400+30"]
[BlackClock "0:05:30"]

1. e4 {[%emt 0:04:00]} c5 {[%emt 0:01:00]} 2. Nf3 {[%emt 0:00:30]} Nc6 {[%emt 0:00:00]} 3. Bb5 {[%emt 0:02:30]} g6 {[%emt 0:00:00]} 4. O-O {[%emt 0:00:30]} Bg7 {[%emt 0:00:30]} 5. Re1 {[%emt 0:00:30]} e5 {[%emt 0:01:30]} 6. Nc3 {[%emt 0:03:30]} a6 {[%emt 0:04:30]} 7. Bc4 {[%emt 0:13:30]} b5 {[%emt 0:03:30]} 8. Bf1 {[%emt 0:02:30]} Nge7 {[%emt 0:02:30]} 9. a4 {[%emt 0:00:30]} b4 {[%emt 0:03:30]} 10. Nd5 {[%emt 0:00:30]} d6 {[%emt 0:01:30]} 11. Bc4 {[%emt 0:00:30]} Be6 {[%emt 0:04:30]} 12. d3 {[%emt 0:01:30]} Bxd5 {[%emt 0:11:30]} 13. exd5 {[%emt 0:05:30]} Nb8 {[%emt 0:03:30]} 14. c3 {[%emt 0:01:30]} bxc3 {[%emt 0:05:30]} 15. bxc3 {[%emt 0:00:30]} O-O {[%emt 0:00:00]} 16. a5 {[%emt 0:04:30]} Nd7 {[%emt 0:04:00]} 17. Qa4 {[%emt 0:01:30]} Ra7 {[%emt 0:04:30]} 18. Bg5 {[%emt 0:10:30]} f6 {[%emt 0:04:30]} 19. Bd2 {[%emt 0:00:30]} h6 {[%emt 0:01:30]} 20. d4 {[%emt 0:03:30]} Kh7 {[%emt 0:01:30]} 21. Rab1 {[%emt 0:04:30]} Qa8 {[%emt 0:03:30]} 22. Qa2 {[%emt 0:01:30]} Rc7 {[%emt 0:05:30]} 23. Be3 {[%emt 0:05:30]} f5 {[%emt 0:04:30]} 24. dxe5 {[%emt 0:01:30]} Nxe5 {[%emt 0:00:30]} 25. Nxe5 {[%emt 0:00:30]} Bxe5 {[%emt 0:00:30]} 26. Bd2 {[%emt 0:00:30]} Nc8 {[%emt 0:04:30]} 27. f4 {[%emt 0:00:30]} Bg7 {[%emt 0:01:30]} 28. Qb3 {[%emt 0:02:30]} Ne7 {[%emt 0:03:30]} 29. Re6 {[%emt 0:05:30]} Rf6 {[%emt 0:00:30]} 30. Rxf6 {[%emt 0:03:30]} Bxf6 {[%emt 0:00:30]} 31. Qb8 {[%emt 0:00:30]} Qxb8 {[%emt 0:00:30]} 32. Rxb8 {[%emt 0:00:30]} g5 {[%emt 0:00:30]} 33. g3 {[%emt 0:00:30]} gxf4 {[%emt 0:00:30]} 34. gxf4 {[%emt 0:00:30]} Ng6 {[%emt 0:00:30]} 35. Bxa6 {[%emt 0:00:30]} Nh4 {[%emt 0:00:30]} 36. Kf2 {[%emt 0:00:30]} Rg7 {[%emt 0:00:30]} 37. Bf1 {[%emt 0:00:30]} Ng6 {[%emt 0:00:30]} 38. a6 {[%emt 0:00:30]} Bh4+ {[%emt 0:00:30]} 39. Kf3 {[%emt 0:00:30]} Ne5+ {[%emt 0:00:30]} 40. fxe5 {[%emt 0:00:30]} dxe5 {[%emt 0:00:30]} 41. Rb7 {[%emt 0:00:30]} e4+ {[%emt 0:00:30]} 42. Ke2 {[%emt 0:00:30]} 1-0